[Event "80th GEO-ch 2021"]
[Site "Tbilisi"]
[Date "2021.04.24"]
[Round "5.4"]
[White "Kacharava, Nikolozi"]
[Black "Gagunashvili, Merab"]
[Result "1/2-1/2"]
[ECO "C45"]
[WhiteElo "2443"]
[BlackElo "2584"]
[Annotator "ChessBase"]
[PlyCount "122"]
[EventDate "2021.04.20"]
[EventType "tourn"]
[EventCountry "GEO"]
[SourceTitle "playchess.com"]
[Source "ChessBase"]
[SourceQuality "1"]
[TimeControl "5400+30"]

1. e4 {[%emt 0:00:00]} e5 {[%emt 0:00:21]} 2. Nf3 {[%emt 0:00:00]} Nc6 {[%emt 0:00:06]} 3. d4 {[%emt 0:00:13]} exd4 {[%emt 0:00:26]} 4. Nxd4 {[%emt 0:00:22]} Bb4+ {[%emt 0:00:07]} 5. c3 {[%emt 0:00:32]} Bc5 {[%emt 0:00:04]} 6. Be3 {[%emt 0:00:27]} Bb6 {[%emt 0:00:20]} 7. Nf5 {[%emt 0:00:38]} Bxe3 {[%emt 0:00:18]} 8. Nxe3 {[%emt 0:00:38]} Nge7 {[%emt 0:00:13]} 9. c4 {[%emt 0:07:28]} d6 {[%emt 0:00:29]} 10. Nc3 {[%emt 0:01:35]} O-O {[%emt 0:00:16]} 11. Bd3 {[%emt 0:02:22]} f5 {[%emt 0:11:16]} 12. exf5 {[%emt 0:02:31]} Nxf5 {[%emt 0:00:47]} 13. Bxf5 {[%emt 0:01:49]} Bxf5 {[%emt 0:00:06]} 14. Qd5+ {[%emt 0:05:03]} Kh8 {[%emt 0:01:16]} 15. Nxf5 {[%emt 0:00:40]} Nb4 {[%emt 0:03:27]} 16. Qd2 {[%emt 0:01:27]} Rxf5 {[%emt 0:00:22]} 17. O-O {[%emt 0:02:10]} Qd7 {[%emt 0:01:01]} 18. Rae1 {[%emt 0:04:49]} Nc6 {[%emt 0:03:13]} 19. f4 {[%emt 0:03:04]} Rff8 {[%emt 0:01:56]} 20. Nd5 {[%emt 0:02:44]} Rae8 {[%emt 0:00:44]} 21. Rxe8 {[%emt 0:05:45]} Rxe8 {[%emt 0:00:06]} 22. Re1 {[%emt 0:00:36]} Rxe1+ {[%emt 0:02:22]} 23. Qxe1 {[%emt 0:00:06]} h6 {[%emt 0:00:43]} 24. Qe4 {[%emt 0:04:44]} Kg8 {[%emt 0:04:08]} 25. b4 {[%emt 0:08:59]} Kf7 {[%emt 0:03:43]} 26. Kf2 {[%emt 0:06:34]} Nd8 {[%emt 0:03:17]} 27. f5 {[%emt 0:02:28]} c6 {[%emt 0:03:05]} 28. Nf4 {[%emt 0:00:12]} Qe7 {[%emt 0:01:35]} 29. Qxe7+ {[%emt 0:03:17]} Kxe7 {[%emt 0:00:05]} 30. Ke3 {[%emt 0:01:02]} Nf7 {[%emt 0:06:48]} 31. Nh5 {[%emt 0:06:15]} Ne5 {[%emt 0:00:47]} 32. Kd4 {[%emt 0:01:37]} g5 {[%emt 0:16:56]} 33. c5 {[%emt 0:01:22]} Nd7 {[%emt 0:03:32]} 34. cxd6+ {[%emt 0:01:50]} Kxd6 {[%emt 0:00:04]} 35. Ng3 {[%emt 0:00:27]} b6 {[%emt 0:06:32]} 36. Ne4+ {[%emt 0:01:10]} Ke7 {[%emt 0:00:04]} 37. g4 {[%emt 0:01:31]} Nb8 {[%emt 0:00:37]} 38. a4 {[%emt 0:01:53]} Nd7 {[%emt 0:03:45]} 39. a5 {[%emt 0:02:26]} Nb8 {[%emt 0:00:18]} 40. Nc3 {[%emt 0:06:12]} Kd6 {[%emt 0:00:57]} 41. Ne4+ {[%emt 0:01:00]} Ke7 {[%emt 0:00:19]} 42. Nd2 {[%emt 0:02:22]} Na6 {[%emt 0:02:31]} 43. Kc4 {[%emt 0:01:32]} Kd6 {[%emt 0:01:37]} 44. axb6 {[%emt 0:01:52]} axb6 {[%emt 0:00:04]} 45. b5 {[%emt 0:00:40]} Nc5 {[%emt 0:01:50]} 46. bxc6 {[%emt 0:00:44]} Kxc6 {[%emt 0:00:05]} 47. Kd4 {[%emt 0:00:41]} Nd7 {[%emt 0:01:06]} 48. Ne4 {[%emt 0:01:37]} b5 {[%emt 0:03:40]} 49. h3 {[%emt 0:00:52]} b4 {[%emt 0:01:23]} 50. Kc4 {[%emt 0:00:36]} b3 {[%emt 0:00:34]} 51. Kxb3 {[%emt 0:00:10]} Kd5 {[%emt 0:00:03]} 52. Ng3 {[%emt 0:01:09]} Nf6 {[%emt 0:01:06]} 53. Kc3 {[%emt 0:02:52]} Ke5 {[%emt 0:00:03]} 54. Kd3 {[%emt 0:00:21]} h5 {[%emt 0:02:29]} 55. gxh5 {[%emt 0:01:37]} Kf4 {[%emt 0:00:07]} 56. Ne2+ {[%emt 0:00:27]} Kxf5 {[%emt 0:00:09]} 57. Nd4+ {[%emt 0:00:18]} Kf4 {[%emt 0:00:23]} 58. h6 {[%emt 0:01:02]} Kg3 {[%emt 0:00:26]} 59. Ne6 {[%emt 0:00:57]} Kxh3 {[%emt 0:00:12]} 60. Nxg5+ {[%emt 0:00:11]} Kg4 {[%emt 0:00:07]} 61. Ne4 {[%emt 0:00:13]} Nh7 {[%emt 0:00:35]} 1/2-1/2

[Event "80th GEO-ch 2021"]
[Site "Tbilisi"]
[Date "2021.04.24"]
[Round "5.5"]
[White "Quparadze, Giga"]
[Black "Lortkipanidze, Nodar"]
[Result "1-0"]
[ECO "B15"]
[WhiteElo "2463"]
[BlackElo "2416"]
[Annotator "ChessBase"]
[PlyCount "123"]
[EventDate "2021.04.20"]
[EventType "tourn"]
[EventCountry "GEO"]
[SourceTitle "playchess.com"]
[Source "ChessBase"]
[SourceQuality "1"]
[TimeControl "5400+30"]

1. e4 {[%emt 0:00:00]} c6 {[%emt 0:00:00]} 2. d4 {[%emt 0:00:00]} d5 {[%emt 0:00:00]} 3. Nc3 {[%emt 0:00:00]} dxe4 {[%emt 0:00:00]} 4. Nxe4 {[%emt 0:00:00]} Nf6 {[%emt 0:00:00]} 5. Nxf6+ {[%emt 0:00:00]} exf6 {[%emt 0:00:00]} 6. c3 {[%emt 0:00:03]} Bd6 {[%emt 0:00:00]} 7. Bd3 {[%emt 0:00:04]} Na6 {[%emt 0:00:00]} 8. Qc2 {[%emt 0:00:14]} Nc7 {[%emt 0:02:04]} 9. Ne2 {[%emt 0:00:07]} h5 {[%emt 0:00:18]} 10. O-O {[%emt 0:00:13]} Nd5 {[%emt 0:00:43]} 11. a3 {[%emt 0:00:17]} Kf8 {[%emt 0:01:09]} 12. c4 {[%emt 0:00:33]} Ne7 {[%emt 0:00:08]} 13. Bd2 {[%emt 0:01:00]} g6 {[%emt 0:00:19]} 14. Bc3 {[%emt 0:00:31]} Kg7 {[%emt 0:00:19]} 15. Ng3 {[%emt 0:00:17]} Qc7 {[%emt 0:04:09]} 16. f4 {[%emt 0:08:40]} h4 {[%emt 0:11:06]} 17. Ne4 {[%emt 0:00:27]} Nf5 {[%emt 0:00:04]} 18. d5 {[%emt 0:02:38]} Bxf4 {[%emt 0:27:09]} 19. Bxf6+ {[%emt 0:00:15]} Kg8 {[%emt 0:00:02]} 20. d6 {[%emt 0:00:07]} Bxd6 {[%emt 0:01:00]} 21. Nxd6 {[%emt 0:00:29]} Qxd6 {[%emt 0:00:21]} 22. Bxh8 {[%emt 0:00:09]} Kxh8 {[%emt 0:00:03]} 23. Qc3+ {[%emt 0:00:38]} Kg8 {[%emt 0:00:16]} 24. c5 {[%emt 0:00:07]} Qd5 {[%emt 0:01:08]} 25. Rae1 {[%emt 0:01:30]} Be6 {[%emt 0:00:28]} 26. Bxf5 {[%emt 0:00:07]} Bxf5 {[%emt 0:00:19]} 27. Rd1 {[%emt 0:02:14]} Qe4 {[%emt 0:03:21]} 28. Rd4 {[%emt 0:00:08]} Qe7 {[%emt 0:00:19]} 29. Re1 {[%emt 0:00:34]} Be6 {[%emt 0:05:21]} 30. h3 {[%emt 0:00:35]} Qg5 {[%emt 0:01:07]} 31. Ree4 {[%emt 0:00:38]} Bd5 {[%emt 0:02:20]} 32. Qe3 {[%emt 0:01:26]} Qxe3+ {[%emt 0:01:03]} 33. Rxe3 {[%emt 0:00:05]} b6 {[%emt 0:01:22]} 34. cxb6 {[%emt 0:00:15]} axb6 {[%emt 0:00:04]} 35. Rxh4 {[%emt 0:00:05]} b5 {[%emt 0:00:14]} 36. Rd4 {[%emt 0:00:09]} Kg7 {[%emt 0:00:15]} 37. h4 {[%emt 0:00:07]} Kf6 {[%emt 0:01:38]} 38. Kf2 {[%emt 0:00:08]} Rh8 {[%emt 0:02:18]} 39. b3 {[%emt 0:01:25]} g5 {[%emt 0:00:18]} 40. hxg5+ {[%emt 0:00:09]} Kxg5 {[%emt 0:00:09]} 41. a4 {[%emt 0:00:04]} bxa4 {[%emt 0:00:09]} 42. bxa4 {[%emt 0:00:06]} Ra8 {[%emt 0:00:07]} 43. g3 {[%emt 0:00:23]} Kf6 {[%emt 0:00:16]} 44. Rf4+ {[%emt 0:00:06]} Kg5 {[%emt 0:00:42]} 45. Ra3 {[%emt 0:00:08]} Ra5 {[%emt 0:00:11]} 46. Ke3 {[%emt 0:01:58]} f5 {[%emt 0:01:49]} 47. Kd4 {[%emt 0:02:10]} Bf7 {[%emt 0:01:19]} 48. Ra1 {[%emt 0:02:51]} c5+ {[%emt 0:01:32]} 49. Kc3 {[%emt 0:01:05]} Be8 {[%emt 0:04:07]} 50. Re1 {[%emt 0:00:38]} Bc6 {[%emt 0:01:57]} 51. Re5 {[%emt 0:00:17]} Bd7 {[%emt 0:00:05]} 52. Rd5 {[%emt 0:00:20]} Be6 {[%emt 0:00:45]} 53. Rd6 {[%emt 0:00:04]} Kf6 {[%emt 0:00:37]} 54. Rb6 {[%emt 0:00:55]} Ra8 {[%emt 0:08:45]} 55. Rb5 {[%emt 0:00:37]} Rg8 {[%emt 0:00:12]} 56. Rf3 {[%emt 0:00:28]} Rg4 {[%emt 0:02:57]} 57. a5 {[%emt 0:00:14]} Ra4 {[%emt 0:00:18]} 58. Kb2 {[%emt 0:00:07]} Bd5 {[%emt 0:06:56]} 59. Ra3 {[%emt 0:00:11]} Rc4 {[%emt 0:03:21]} 60. a6 {[%emt 0:00:06]} Kg5 {[%emt 0:00:10]} 61. a7 {[%emt 0:00:51]} Kg4 {[%emt 0:01:16]} 62. Raa5 {[%emt 0:00:15]} 1-0

[Event "80th GEO-ch 2021"]
[Site "Tbilisi"]
[Date "2021.04.24"]
[Round "5.5"]
[White "Kacharava, Nikolozi"]
[Black "Gagunashvili, Merab"]
[Result "*"]
[ECO "C45"]
[WhiteElo "2443"]
[BlackElo "2584"]
[Annotator "ChessBase"]
[PlyCount "56"]
[EventDate "2021.04.20"]
[EventType "tourn"]
[EventCountry "GEO"]
[SourceTitle "playchess.com"]
[Source "ChessBase"]
[SourceQuality "1"]
[TimeControl "5400+30"]

1. e4 {[%emt 0:00:00]} e5 {[%emt 0:00:21]} 2. Nf3 {[%emt 0:00:00]} Nc6 {[%emt 0:00:06]} 3. d4 {[%emt 0:00:13]} exd4 {[%emt 0:00:26]} 4. Nxd4 {[%emt 0:00:22]} Bb4+ {[%emt 0:00:07]} 5. c3 {[%emt 0:00:32]} Bc5 {[%emt 0:00:04]} 6. Be3 {[%emt 0:00:27]} Bb6 {[%emt 1:31:56]} 7. Nf5 {[%emt 0:00:38]} Bxe3 {[%emt 0:00:18]} 8. Nxe3 {[%emt 0:00:38]} Nge7 {[%emt 0:00:13]} 9. c4 {[%emt 0:07:28]} d6 {[%emt 0:00:29]} 10. Nc3 {[%emt 0:01:35]} O-O {[%emt 0:00:16]} 11. Bd3 {[%emt 0:02:22]} f5 {[%emt 0:11:16]} 12. exf5 {[%emt 0:02:31]} Nxf5 {[%emt 0:00:47]} 13. Bxf5 {[%emt 0:01:49]} Bxf5 {[%emt 0:00:06]} 14. Qd5+ {[%emt 0:05:03]} Kh8 {[%emt 0:01:16]} 15. Nxf5 {[%emt 0:00:40]} Nb4 {[%emt 0:03:27]} 16. Qd2 {[%emt 0:01:27]} Rxf5 {[%emt 0:00:22]} 17. O-O {[%emt 1:12:45]} Qd7 {[%emt 0:01:01]} 18. Rae1 {[%emt 0:04:49]} Nc6 {[%emt 0:03:13]} 19. f4 {[%emt 1:06:46]} Rff8 {[%emt 0:01:56]} 20. Nd5 {[%emt 0:02:44]} Rae8 {[%emt 0:00:44]} 21. Rxe8 {[%emt 0:05:45]} Rxe8 {[%emt 0:00:06]} 22. Re1 {[%emt 0:00:36]} Rxe1+ {[%emt 0:02:22]} 23. Qxe1 {[%emt 0:00:06]} h6 {[%emt 0:00:43]} 24. Qe4 {[%emt 0:04:44]} Kg8 {[%emt 0:04:08]} 25. b4 {[%emt 0:08:59]} Kf7 {[%emt 0:03:43]} 26. Kf2 {[%emt 0:06:34]} Nd8 {[%emt 0:03:17]} 27. f5 {[%emt 0:02:28]} c6 {[%emt 0:03:05]} 28. Nf4 {[%emt 0:00:12]} Qe7 {[%emt 0:01:35]} *

[Event "80th GEO-ch 2021"]
[Site "Tbilisi"]
[Date "2021.04.26"]
[Round "6.1"]
[White "Azaladze, Shota"]
[Black "Gagunashvili, Merab"]
[Result "0-1"]
[ECO "A07"]
[WhiteElo "2439"]
[BlackElo "2584"]
[Annotator "ChessBase"]
[PlyCount "89"]
[EventDate "2021.04.20"]
[EventType "tourn"]
[EventCountry "GEO"]
[SourceTitle "playchess.com"]
[Source "ChessBase"]
[SourceQuality "1"]
[TimeControl "5400+30"]

1. Nf3 {[%emt 0:00:00]} d5 {[%emt 0:00:24]} 2. g3 {[%emt 0:00:00]} Nc6 {[%emt 0:00:30]} 3. Bg2 {[%emt 0:00:00]} e5 {[%emt 0:00:36]} 4. d3 {[%emt 0:00:00]} Nf6 {[%emt 0:01:40]} 5. O-O {[%emt 0:00:02]} Be7 {[%emt 0:00:10]} 6. e4 {[%emt 0:00:28]} dxe4 {[%emt 0:02:38]} 7. dxe4 {[%emt 0:00:17]} Qxd1 {[%emt 0:00:40]} 8. Rxd1 {[%emt 0:00:06]} Bg4 {[%emt 0:00:23]} 9. Re1 {[%emt 0:04:27]} O-O-O {[%emt 0:01:37]} 10. c3 {[%emt 0:00:21]} Nxe4 {[%emt 0:08:20]} 11. Nxe5 {[%emt 0:03:12]} Nxe5 {[%emt 0:01:40]} 12. Bxe4 {[%emt 0:00:03]} f5 {[%emt 0:24:37]} 13. Bg2 {[%emt 0:03:08]} Bf6 {[%emt 0:04:27]} 14. Na3 {[%emt 0:06:54]} Nd3 {[%emt 0:11:19]} 15. Re6 {[%emt 0:04:28]} f4 {[%emt 0:05:46]} 16. Re4 {[%emt 0:04:21]} Bf5 {[%emt 0:03:51]} 17. Rxf4 {[%emt 0:04:28]} Nxc1 {[%emt 0:06:06]} 18. Rxc1 {[%emt 0:01:23]} Bg5 {[%emt 0:00:31]} 19. Rxf5 {[%emt 0:00:29]} Bxc1 {[%emt 0:00:14]} 20. Bh3 {[%emt 0:02:14]} Kb8 {[%emt 0:01:34]} 21. Nc4 {[%emt 0:02:33]} Rhf8 {[%emt 0:00:52]} 22. a4 {[%emt 0:00:43]} Rxf5 {[%emt 0:02:18]} 23. Bxf5 {[%emt 0:00:03]} g6 {[%emt 0:00:35]} 24. Be4 {[%emt 0:01:38]} c6 {[%emt 0:00:25]} 25. a5 {[%emt 0:00:18]} Kc7 {[%emt 0:00:18]} 26. Kf1 {[%emt 0:03:20]} b5 {[%emt 0:00:32]} 27. axb6+ {[%emt 0:00:26]} axb6 {[%emt 0:00:04]} 28. b4 {[%emt 0:00:19]} b5 {[%emt 0:07:20]} 29. Na5 {[%emt 0:00:31]} Rd6 {[%emt 0:00:48]} 30. Ke2 {[%emt 0:03:24]} Bb2 {[%emt 0:03:18]} 31. Bxc6 {[%emt 0:00:28]} Rxc6 {[%emt 0:01:21]} 32. Nxc6 {[%emt 0:00:03]} Kxc6 {[%emt 0:00:05]} 33. Kd3 {[%emt 0:02:26]} Kd5 {[%emt 0:00:06]} 34. Kc2 {[%emt 0:00:51]} Ba3 {[%emt 0:00:42]} 35. f3 {[%emt 0:01:56]} g5 {[%emt 0:03:00]} 36. h4 {[%emt 0:00:42]} gxh4 {[%emt 0:01:01]} 37. gxh4 {[%emt 0:00:08]} h5 {[%emt 0:00:04]} 38. Kd2 {[%emt 0:01:15]} Ke5 {[%emt 0:00:54]} 39. Kd3 {[%emt 0:02:39]} Kf4 {[%emt 0:00:28]} 40. c4 {[%emt 0:00:04]} bxc4+ {[%emt 0:00:19]} 41. Kxc4 {[%emt 0:00:11]} Kxf3 {[%emt 0:00:14]} 42. b5 {[%emt 0:00:16]} Be7 {[%emt 0:00:20]} 43. b6 {[%emt 0:00:07]} Bxh4 {[%emt 0:00:08]} 44. b7 {[%emt 0:00:06]} Bg3 {[%emt 0:00:05]} 45. Kd4 {[%emt 0:51:42]} 0-1

[Event "80th GEO-ch 2021"]
[Site "Tbilisi"]
[Date "2021.04.26"]
[Round "6.2"]
[White "Paichadze, Luka"]
[Black "Kacharava, Nikolozi"]
[Result "1/2-1/2"]
[ECO "C01"]
[WhiteElo "2565"]
[BlackElo "2443"]
[Annotator "ChessBase"]
[PlyCount "195"]
[EventDate "2021.04.20"]
[EventType "tourn"]
[EventCountry "GEO"]
[SourceTitle "playchess.com"]
[Source "ChessBase"]
[SourceQuality "1"]
[TimeControl "5400+30"]

1. e4 {[%emt 0:01:52]} e5 {[%emt 0:00:00]} 2. Nf3 {[%emt 0:00:40]} Nf6 {[%emt 0:00:19]} 3. Nxe5 {[%emt 0:00:49]} d6 {[%emt 0:00:18]} 4. Nf3 {[%emt 0:00:09]} Nxe4 {[%emt 0:00:19]} 5. d3 {[%emt 0:00:09]} Nf6 {[%emt 0:00:44]} 6. d4 {[%emt 0:00:08]} d5 {[%emt 0:01:08]} 7. Bd3 {[%emt 0:00:06]} Bd6 {[%emt 0:00:29]} 8. Qe2+ {[%emt 0:00:06]} Qe7 {[%emt 0:03:20]} 9. Qxe7+ {[%emt 0:00:15]} Kxe7 {[%emt 0:00:58]} 10. O-O {[%emt 0:00:13]} Re8 {[%emt 0:03:57]} 11. Nh4 {[%emt 0:03:08]} Kf8 {[%emt 0:04:24]} 12. Nf5 {[%emt 0:00:23]} Bxf5 {[%emt 0:00:54]} 13. Bxf5 {[%emt 0:00:06]} g6 {[%emt 0:01:36]} 14. Bd3 {[%emt 0:00:46]} Kg7 {[%emt 0:01:21]} 15. Nd2 {[%emt 0:00:27]} c6 {[%emt 0:07:12]} 16. Nb3 {[%emt 0:02:46]} Nbd7 {[%emt 0:02:37]} 17. c3 {[%emt 0:06:57]} Nf8 {[%emt 0:04:31]} 18. g3 {[%emt 0:00:46]} h5 {[%emt 0:03:22]} 19. Kg2 {[%emt 0:04:44]} N8d7 {[%emt 0:02:22]} 20. Rd1 {[%emt 0:02:47]} a5 {[%emt 0:03:19]} 21. a4 {[%emt 0:00:19]} Kh7 {[%emt 0:02:07]} 22. Bd2 {[%emt 0:05:14]} Ne4 {[%emt 0:05:07]} 23. Be1 {[%emt 0:00:22]} Nb6 {[%emt 0:03:34]} 24. f3 {[%emt 0:04:24]} Nf6 {[%emt 0:00:38]} 25. Nd2 {[%emt 0:00:43]} Bf8 {[%emt 0:02:52]} 26. b3 {[%emt 0:04:41]} Nc8 {[%emt 0:05:09]} 27. Nf1 {[%emt 0:09:29]} Bg7 {[%emt 0:05:28]} 28. Bf2 {[%emt 0:00:40]} Nd6 {[%emt 0:01:53]} 29. Re1 {[%emt 0:09:24]} Nd7 {[%emt 0:03:52]} 30. Rxe8 {[%emt 0:00:24]} Rxe8 {[%emt 0:01:23]} 31. Rd1 {[%emt 0:01:30]} b6 {[%emt 0:04:45]} 32. Ne3 {[%emt 0:05:09]} Bh6 {[%emt 0:03:08]} 33. Nc2 {[%emt 0:00:29]} Bg7 {[%emt 0:01:23]} 34. c4 {[%emt 0:02:55]} dxc4 {[%emt 0:04:05]} 35. bxc4 {[%emt 0:00:07]} c5 {[%emt 0:01:12]} 36. Bf1 {[%emt 0:02:28]} cxd4 {[%emt 0:00:32]} 37. Nxd4 {[%emt 0:00:05]} Nc5 {[%emt 0:01:30]} 38. Nb3 {[%emt 0:08:00]} Ndb7 {[%emt 0:01:09]} 39. Nxc5 {[%emt 0:00:08]} Nxc5 {[%emt 0:00:07]} 40. Bxc5 {[%emt 0:00:09]} bxc5 {[%emt 0:00:05]} 41. Rd7 {[%emt 0:01:55]} Kg8 {[%emt 0:02:50]} 42. Bd3 {[%emt 0:01:04]} f5 {[%emt 0:01:33]} 43. g4 {[%emt 0:00:25]} hxg4 {[%emt 0:01:26]} 44. fxg4 {[%emt 0:00:05]} fxg4 {[%emt 0:00:46]} 45. Kg3 {[%emt 0:01:48]} Bf6 {[%emt 0:05:33]} 46. Bxg6 {[%emt 0:00:28]} Re2 {[%emt 0:00:19]} 47. Kxg4 {[%emt 0:10:58]} Rxh2 {[%emt 0:00:06]} 48. Kf5 {[%emt 0:02:11]} Bc3 {[%emt 0:00:34]} 49. Rc7 {[%emt 0:01:15]} Bd4 {[%emt 0:00:31]} 50. Ke4 {[%emt 0:02:16]} Rg2 {[%emt 0:00:39]} 51. Bf7+ {[%emt 0:03:06]} Kf8 {[%emt 0:00:11]} 52. Be6 {[%emt 0:00:38]} Rg7 {[%emt 0:01:03]} 53. Rc6 {[%emt 0:00:15]} Ke7 {[%emt 0:00:55]} 54. Bf5 {[%emt 0:00:49]} Rg3 {[%emt 0:01:05]} 55. Re6+ {[%emt 0:00:11]} Kd8 {[%emt 0:00:29]} 56. Ra6 {[%emt 0:00:15]} Re3+ {[%emt 0:01:46]} 57. Kf4 {[%emt 0:00:42]} Kc7 {[%emt 0:01:58]} 58. Rxa5 {[%emt 0:00:14]} Kb6 {[%emt 0:00:35]} 59. Rb5+ {[%emt 0:02:16]} Ka7 {[%emt 0:00:09]} 60. Be4 {[%emt 0:00:20]} Re2 {[%emt 0:00:47]} 61. Ra5+ {[%emt 0:01:28]} Kb6 {[%emt 0:00:10]} 62. Ra8 {[%emt 0:00:15]} Bc3 {[%emt 0:00:28]} 63. Kf5 {[%emt 0:01:33]} Re1 {[%emt 0:00:49]} 64. Rb8+ {[%emt 0:01:17]} Ka7 {[%emt 0:00:54]} 65. Rc8 {[%emt 0:00:38]} Kb6 {[%emt 0:00:33]} 66. Rb8+ {[%emt 0:01:14]} Ka7 {[%emt 0:00:03]} 67. Rb5 {[%emt 0:00:46]} Bd4 {[%emt 0:00:11]} 68. Bd5 {[%emt 0:00:32]} Re5+ {[%emt 0:00:31]} 69. Kf4 {[%emt 0:00:08]} Re2 {[%emt 0:00:27]} 70. Rb3 {[%emt 0:01:10]} Rb2 {[%emt 0:00:52]} 71. Rg3 {[%emt 0:00:15]} Rf2+ {[%emt 0:01:11]} 72. Ke4 {[%emt 0:00:14]} Re2+ {[%emt 0:01:18]} 73. Kf5 {[%emt 0:00:23]} Re5+ {[%emt 0:00:42]} 74. Kf4 {[%emt 0:00:14]} Re1 {[%emt 0:00:24]} 75. Rg8 {[%emt 0:00:17]} Bc3 {[%emt 0:00:18]} 76. Bc6 {[%emt 0:00:20]} Kb6 {[%emt 0:00:31]} 77. Bd5 {[%emt 0:00:47]} Ka5 {[%emt 0:00:35]} 78. Ra8+ {[%emt 0:00:24]} Kb6 {[%emt 0:00:05]} 79. Kf3 {[%emt 0:00:41]} Re7 {[%emt 0:00:56]} 80. Rb8+ {[%emt 0:00:04]} Ka7 {[%emt 0:00:35]} 81. Rc8 {[%emt 0:00:44]} Kb6 {[%emt 0:00:39]} 82. Be4 {[%emt 0:01:34]} Ka5 {[%emt 0:01:06]} 83. Bc6 {[%emt 0:00:28]} Kb6 {[%emt 0:00:30]} 84. Bb5 {[%emt 0:00:15]} Bd4 {[%emt 0:00:48]} 85. Rc6+ {[%emt 0:00:20]} Ka5 {[%emt 0:01:30]} 86. Ra6+ {[%emt 0:00:10]} Kb4 {[%emt 0:00:00]} 87. Ra8 {[%emt 0:00:13]} Be5 {[%emt 0:00:23]} 88. a5 {[%emt 0:00:38]} Bd4 {[%emt 0:00:33]} 89. Kf4 {[%emt 0:00:42]} Rh7 {[%emt 0:00:19]} 90. Kf5 {[%emt 0:00:48]} Rg7 {[%emt 0:00:20]} 91. a6 {[%emt 0:00:22]} Ka5 {[%emt 0:00:22]} 92. Rb8 {[%emt 0:00:19]} Bg1 {[%emt 0:00:34]} 93. Ke6 {[%emt 0:00:51]} Bf2 {[%emt 0:00:31]} 94. Kd5 {[%emt 0:00:48]} Rg5+ {[%emt 0:00:31]} 95. Ke4 {[%emt 0:00:36]} Rg7 {[%emt 0:00:08]} 96. Kf5 {[%emt 0:00:22]} Bg1 {[%emt 0:00:17]} 97. Kf6 {[%emt 0:00:21]} Bd4+ {[%emt 0:00:05]} 98. Kf5 {[%emt 0:00:44]} 1/2-1/2

[Event "80th GEO-ch 2021"]
[Site "Tbilisi"]
[Date "2021.04.26"]
[Round "6.4"]
[White "Lortkipanidze, Nodar"]
[Black "Petriashvili, Nikoloz"]
[Result "1-0"]
[ECO "B34"]
[WhiteElo "2416"]
[BlackElo "2425"]
[Annotator "ChessBase"]
[PlyCount "115"]
[EventDate "2021.04.20"]
[EventType "tourn"]
[EventCountry "GEO"]
[SourceTitle "playchess.com"]
[Source "ChessBase"]
[SourceQuality "1"]
[TimeControl "5400+30"]

1. e4 {[%emt 0:00:00]} c5 {[%emt 0:00:00]} 2. Nf3 {[%emt 0:00:00]} Nc6 {[%emt 0:00:00]} 3. d4 {[%emt 0:00:00]} cxd4 {[%emt 0:00:00]} 4. Nxd4 {[%emt 0:00:00]} g6 {[%emt 0:00:00]} 5. Nc3 {[%emt 0:00:20]} Bg7 {[%emt 0:00:00]} 6. Be3 {[%emt 0:00:18]} Nf6 {[%emt 0:00:04]} 7. Nxc6 {[%emt 0:00:28]} bxc6 {[%emt 0:00:29]} 8. e5 {[%emt 0:00:04]} Ng8 {[%emt 0:00:14]} 9. f4 {[%emt 0:01:18]} Nh6 {[%emt 0:02:14]} 10. Bc4 {[%emt 0:02:36]} O-O {[%emt 0:10:36]} 11. Qd2 {[%emt 0:01:28]} d6 {[%emt 0:02:13]} 12. O-O-O {[%emt 0:01:41]} Qa5 {[%emt 0:20:35]} 13. exd6 {[%emt 0:07:46]} exd6 {[%emt 0:01:34]} 14. Bd4 {[%emt 0:00:29]} Bxd4 {[%emt 0:01:37]} 15. Qxd4 {[%emt 0:00:04]} Nf5 {[%emt 0:00:07]} 16. Qd2 {[%emt 0:01:59]} d5 {[%emt 0:02:23]} 17. Bb3 {[%emt 0:00:34]} h5 {[%emt 0:09:24]} 18. Rhe1 {[%emt 0:05:32]} Be6 {[%emt 0:01:20]} 19. Re5 {[%emt 0:01:53]} Rad8 {[%emt 0:03:46]} 20. Rde1 {[%emt 0:01:35]} Qb4 {[%emt 0:05:25]} 21. Na4 {[%emt 0:03:05]} Qxd2+ {[%emt 0:06:31]} 22. Kxd2 {[%emt 0:01:20]} Nd6 {[%emt 0:00:03]} 23. Nc5 {[%emt 0:00:13]} Bf5 {[%emt 0:05:13]} 24. Re7 {[%emt 0:01:17]} Ne4+ {[%emt 0:02:52]} 25. Nxe4 {[%emt 0:00:14]} Bxe4 {[%emt 0:00:01]} 26. Rxa7 {[%emt 0:00:47]} Bxg2 {[%emt 0:00:13]} 27. Rc7 {[%emt 0:02:42]} Rd6 {[%emt 0:00:01]} 28. a4 {[%emt 0:00:27]} Rf6 {[%emt 0:01:30]} 29. a5 {[%emt 0:00:18]} Ra8 {[%emt 0:00:13]} 30. Ra1 {[%emt 0:00:13]} Ra6 {[%emt 0:05:30]} 31. Ke3 {[%emt 0:00:39]} Kf8 {[%emt 0:01:33]} 32. Kd4 {[%emt 0:00:19]} Rxf4+ {[%emt 0:01:28]} 33. Kc5 {[%emt 0:00:13]} Rf5 {[%emt 0:00:30]} 34. Rc8+ {[%emt 0:08:48]} Ke7 {[%emt 0:00:37]} 35. Rb8 {[%emt 0:00:09]} Kd7 {[%emt 0:02:04]} 36. Rb7+ {[%emt 0:13:42]} Kc8 {[%emt 0:01:09]} 37. Re7 {[%emt 0:00:48]} Kd8 {[%emt 0:00:53]} 38. Re2 {[%emt 0:00:44]} Be4 {[%emt 0:01:50]} 39. c3 {[%emt 0:07:38]} g5 {[%emt 0:00:11]} 40. Bd1 {[%emt 0:01:56]} d4+ {[%emt 0:08:26]} 41. Kxd4 {[%emt 0:00:07]} Bf3 {[%emt 0:00:03]} 42. Re5 {[%emt 0:00:29]} c5+ {[%emt 0:00:12]} 43. Kc4 {[%emt 0:03:00]} Rxe5 {[%emt 0:00:01]} 44. Bxf3 {[%emt 0:00:09]} Kc7 {[%emt 0:00:28]} 45. Bd5 {[%emt 0:00:50]} f5 {[%emt 0:03:26]} 46. Kxc5 {[%emt 0:00:12]} f4 {[%emt 0:00:13]} 47. Kd4 {[%emt 0:00:56]} Re2 {[%emt 0:00:34]} 48. b4 {[%emt 0:00:12]} Rd6 {[%emt 0:01:43]} 49. c4 {[%emt 0:01:57]} Kb8 {[%emt 0:00:10]} 50. b5 {[%emt 0:00:53]} f3 {[%emt 0:00:41]} 51. b6 {[%emt 0:01:36]} Re7 {[%emt 0:02:59]} 52. Kc5 {[%emt 0:01:04]} Rxd5+ {[%emt 0:00:08]} 53. cxd5 {[%emt 0:00:15]} f2 {[%emt 0:01:09]} 54. a6 {[%emt 0:00:18]} Rf7 {[%emt 0:00:07]} 55. Rf1 {[%emt 0:03:36]} g4 {[%emt 0:00:27]} 56. Kc6 {[%emt 0:00:14]} h4 {[%emt 0:01:29]} 57. d6 {[%emt 0:00:11]} Rf3 {[%emt 0:01:19]} 58. a7+ {[%emt 0:00:06]} 1-0